lending/lending_fUSD_20250318
["ID","MTS","AMOUNT","RATE_DAILY","PERIOD"]
[356376397,1742339624820,-695.53,0.00043013,120]
[356376398,1742339624831,-500.0,0.00043013,120]
[356376399,1742339624840,-500.0,0.00043013,120]
[356376400,1742339624850,-500.0,0.00043013,120]
[356376401,1742339624859,-500.0,0.00043013,120]
[356376402,1742339624868,-500.0,0.00043013,120]
[356376403,1742339624878,-500.0,0.00043013,120]
[356376404,1742339624887,-520.58493065,0.00043013,120]
[356376405,1742339624900,-500.0,0.00043013,120]
[356376406,1742339624910,-500.0,0.00043013,120]
[356376407,1742339624919,-500.0,0.00043013,120]
[356376408,1742339624929,-599.27,0.00043013,120]
[356376409,1742339624938,-500.0,0.00043013,120]
[356376410,1742339624948,-675.48,0.00043013,120]
[356376411,1742339624957,-500.0,0.00043013,120]
[356376412,1742339624966,-2951.2,0.00043013,120]
[356376413,1742339624976,-3587.64,0.00043013,120]
[356376414,1742339624986,-500.0,0.00043013,120]
[356376415,1742339624995,-500.0,0.00043013,120]
[356376416,1742339625007,-500.0,0.00043013,120]
[356376417,1742339625016,-731.85,0.00043013,120]
[356376418,1742339625025,-500.0,0.00043013,120]
[356376419,1742339625035,-500.0,0.00043013,120]
[356376420,1742339625044,-1000.25,0.00043013,120]
[356376421,1742339625053,-500.0,0.00043013,30]
[356376422,1742339625064,-500.0,0.00043013,120]
[356376423,1742339625074,-500.0,0.00043013,120]
[356376424,1742339625085,-500.0,0.00043013,120]
[356376425,1742339625094,-500.0,0.00043013,120]
[356376426,1742339625103,-500.0,0.00043013,120]
[356376427,1742339625112,-500.0,0.00043013,120]
[356376428,1742339625121,-500.0,0.00043013,120]
[356376429,1742339625130,-500.0,0.00043013,120]
[356376430,1742339625140,-500.0,0.00043013,120]
[356376431,1742339625149,-479.3545714,0.00043013,120]
[356376432,1742339625158,-162.71993069,0.00043013,120]
[356376433,1742339625167,-474.38522659,0.00043013,120]
[356376434,1742339625177,-500.0,0.00043013,120]
[356376435,1742339625186,-500.0,0.00043013,120]
[356376436,1742339625195,-500.0,0.00043013,120]
[356376437,1742339625205,-500.0,0.00043013,120]
[356376438,1742339625214,-500.0,0.00043013,120]
[356376439,1742339625223,-500.0,0.00043013,120]
[356376440,1742339625233,-500.0,0.00043013,120]
[356376441,1742339625243,-4954.91,0.00043013,120]
[356376442,1742339625253,-515.86,0.00043013,120]
[356376443,1742339625262,-1142.14,0.00043013,120]
[356376444,1742339625272,-1372.58,0.00043013,120]
[356376445,1742339625281,-500.0,0.00043013,120]
[356376446,1742339625291,-2157.42,0.00043013,120]
[356376447,1742339625301,-500.0,0.00043013,120]
[356376448,1742339625310,-1414.54,0.00043013,120]
[356376449,1742339625320,-1247.27,0.00043013,120]
[356376450,1742339625329,-571.9,0.00043013,120]
[356376451,1742339625339,-1731.09,0.00043013,120]
[356376452,1742339625347,-500.0,0.00043013,120]
[356376453,1742339625357,-690.54,0.00043013,120]
[356376454,1742339625366,-1601.13,0.00043013,120]
[356376455,1742339625376,-647.8,0.00043013,120]
[356376456,1742339625386,-619.12,0.00043013,120]
[356376457,1742339625398,-500.0,0.00043013,120]
[356376458,1742339625409,-582.71817605,0.00043013,120]
[356376459,1742339625419,-657.42,0.00043013,120]
[356376460,1742339625429,-500.0,0.00043013,120]
[356376461,1742339625438,-1197.86,0.00043013,120]
[356376462,1742339625447,-500.0,0.00043013,120]
[356376463,1742339625457,-1514.57,0.00043013,120]
[356376464,1742339625466,-500.0,0.00043013,120]
[356376465,1742339625475,-500.0,0.00043013,120]
[356376466,1742339625485,-500.0,0.00043013,120]
[356376467,1742339625494,-500.0,0.00043013,120]
[356376468,1742339625505,-500.0,0.00043013,120]
[356376469,1742339625515,-1264.5,0.00043013,120]
[356376470,1742339625524,-500.0,0.00043013,2]
[356376471,1742339625533,-500.0,0.00043013,120]
[356376472,1742339625542,-500.0,0.00043013,120]
[356376473,1742339625551,-500.0,0.00043013,120]
[356376474,1742339625560,-677.1,0.00043013,120]
[356376475,1742339625570,-538.01,0.00043013,120]
[356376476,1742339625579,-1026.81,0.00043013,120]
[356376477,1742339625589,-500.0,0.00043013,120]
[356376478,1742339625598,-1290.9,0.00043013,120]
[356376479,1742339625607,-275.12,0.00043151,2]
[356376480,1742339625616,-342.96015976,0.00043287,120]
[356376481,1742339625626,-588.39,0.00043287,120]
[356376482,1742339625635,-500.0,0.00043287,120]
[356376483,1742339625644,-500.0,0.00043287,120]
[356376484,1742339625654,-695.53,0.00043287,120]
[356376485,1742339625663,-500.0,0.00043287,120]
[356376486,1742339625673,-500.0,0.00043287,120]
[356376487,1742339625682,-500.0,0.00043287,120]
[356376488,1742339625691,-500.0,0.00043287,120]
[356376489,1742339625700,-500.0,0.00043287,120]
[356376490,1742339625710,-434.3687847,0.00043287,120]
[356376491,1742339625720,-518.27911883,0.00043287,120]
[356376492,1742339625729,-500.0,0.00043287,120]
[356376493,1742339625738,-523.75350075,0.00043287,120]
[356376494,1742339625750,-599.27,0.00043287,120]
[356376495,1742339625759,-500.0,0.00043287,120]
[356376496,1742339625769,-675.48,0.00043287,120]
[356376497,1742339625778,-500.0,0.00043287,120]
[356376498,1742339625788,-2951.2,0.00043287,120]
[356376499,1742339625797,-3587.64,0.00043287,120]
[356376500,1742339625808,-500.0,0.00043287,120]
[356376501,1742339625819,-500.0,0.00043287,120]
[356376502,1742339625828,-731.85,0.00043287,120]
[356376503,1742339625838,-500.0,0.00043287,120]
[356376504,1742339625847,-500.0,0.00043287,120]
[356376505,1742339625857,-1000.25,0.00043287,120]
[356376506,1742339625867,-500.0,0.00043287,30]
[356376507,1742339625876,-500.0,0.00043287,120]
[356376508,1742339625886,-500.0,0.00043287,120]
[356376509,1742339625897,-500.0,0.00043287,120]
[356376510,1742339625907,-500.0,0.00043287,120]
[356376511,1742339625916,-500.0,0.00043287,120]
[356376512,1742339626033,-500.0,0.00043287,120]
[356376513,1742339626044,-500.0,0.00043287,120]
[356376514,1742339626054,-500.0,0.00043287,120]
[356376515,1742339626063,-500.0,0.00043287,120]
[356376516,1742339626072,-500.0,0.00043287,120]
[356376517,1742339626082,-500.0,0.00043287,120]
[356376518,1742339626091,-500.0,0.00043287,120]
[356376519,1742339626100,-512.06873073,0.00043287,120]
[356376520,1742339626109,-565.84599299,0.00043287,120]
[356376521,1742339626119,-500.0,0.00043287,120]
[356376522,1742339626128,-4954.91,0.00043287,120]
[356376523,1742339626137,-515.86,0.00043287,120]
[356376524,1742339626146,-1142.14,0.00043287,120]
[356376525,1742339626155,-1372.58,0.00043287,120]
[356376526,1742339626164,-500.0,0.00043287,120]
[356376527,1742339626174,-2157.42,0.00043287,120]
[356376528,1742339626183,-500.0,0.00043287,120]
[356376529,1742339626192,-1414.54,0.00043287,120]
[356376530,1742339626202,-1247.27,0.00043287,120]
[356376531,1742339626212,-571.9,0.00043287,120]
[356376532,1742339626221,-1731.09,0.00043287,120]
[356376533,1742339626230,-500.0,0.00043287,120]
[356376534,1742339626239,-690.54,0.00043287,120]
[356376535,1742339626249,-1601.13,0.00043287,120]
[356376536,1742339626258,-647.8,0.00043287,120]
[356376537,1742339626267,-619.12,0.00043287,120]
[356376538,1742339626276,-500.0,0.00043287,120]
[356376539,1742339626284,-657.42,0.00043287,120]
[356376540,1742339626293,-500.0,0.00043287,120]
[356376541,1742339626302,-1197.86,0.00043287,120]
[356376542,1742339626311,-500.0,0.00043287,120]
[356376543,1742339626320,-1514.57,0.00043287,120]
[356376544,1742339626329,-500.0,0.00043287,120]
[356376545,1742339626338,-230.22,0.00043287,120]
[356376546,1742339626347,-500.0,0.00043287,120]
[356376547,1742339626356,-500.0,0.00043287,120]
[356376548,1742339626366,-500.0,0.00043287,120]
[356376549,1742339626375,-1264.5,0.00043287,120]
[356376550,1742339626384,-500.0,0.00043287,2]
[356376551,1742339626393,-500.0,0.00043287,120]
[356376552,1742339626402,-500.0,0.00043287,120]
[356376553,1742339626411,-500.0,0.00043287,120]
[356376554,1742339626420,-677.1,0.00043287,120]
[356376555,1742339626429,-538.01,0.00043287,120]
[356376556,1742339626438,-1026.81,0.00043287,120]
[356376557,1742339626447,-500.0,0.00043287,120]
[356376558,1742339626456,-1290.9,0.00043287,120]
[356376559,1742339626465,-40920.0,0.000433,4]
[356376560,1742339626474,-258.42,0.00043346,120]
[356376561,1742339626483,-200.0,0.000434,120]
[356376562,1742339626493,-2096.23939203,0.000434,120]
[356376563,1742339626503,-156.95427074,0.00043407,120]
[356376564,1742339626512,-2000.0,0.00043458,8]
[356376565,1742339626521,-50000.0,0.000435,25]
[356376566,1742339626530,-1000.0,0.000435,120]
[356376567,1742339626539,-160.39865507,0.000435,120]
[356376568,1742339626549,-588.39,0.00043561,120]
[356376569,1742339626559,-500.0,0.00043561,120]
[356376570,1742339626568,-500.0,0.00043561,120]
[356376571,1742339626577,-695.53,0.00043561,120]
[356376572,1742339626586,-500.0,0.00043561,120]
[356376573,1742339626595,-500.0,0.00043561,120]
[356376574,1742339626604,-527.41873974,0.00043561,120]
[356376575,1742339626613,-500.0,0.00043561,120]
[356376576,1742339626622,-500.0,0.00043561,120]
[356376577,1742339626631,-599.27,0.00043561,120]
[356376578,1742339626640,-500.0,0.00043561,120]
[356376579,1742339626649,-675.48,0.00043561,120]
[356376580,1742339626658,-500.0,0.00043561,120]
[356376581,1742339626667,-2951.2,0.00043561,120]
[356376582,1742339626677,-3587.64,0.00043561,120]
[356376583,1742339626686,-500.0,0.00043561,120]
[356376584,1742339626695,-530.83372029,0.00043561,120]
[356376585,1742339626704,-731.85,0.00043561,120]
[356376586,1742339626714,-500.0,0.00043561,120]
[356376587,1742339626723,-500.0,0.00043561,120]
[356376588,1742339626732,-1000.25,0.00043561,120]
[356376589,1742339626741,-434.82781088,0.00043561,30]
[356376590,1742339626751,-554.11891909,0.00043561,120]
[356376591,1742339626760,-197.09135133,0.00043561,120]
[356376592,1742339626769,-500.0,0.00043561,120]
[356376593,1742339626780,-495.07428648,0.00043561,120]
[356376594,1742339626789,-500.0,0.00043561,120]
[356376595,1742339626798,-500.0,0.00043561,120]
[356376596,1742339626807,-500.0,0.00043561,120]
[356376597,1742339626817,-364.13269644,0.00043561,120]
[356376598,1742339626829,-500.0,0.00043561,120]
[356376599,1742339626839,-4954.91,0.00043561,120]
[356376600,1742339626848,-515.86,0.00043561,120]
[356376601,1742339626857,-1142.14,0.00043561,120]
[356376602,1742339626867,-500.0,0.00043561,120]
[356376603,1742339626877,-1372.58,0.00043561,120]
[356376604,1742339626886,-2157.42,0.00043561,120]
[356376605,1742339626895,-500.0,0.00043561,120]
[356376606,1742339626907,-1414.54,0.00043561,120]
[356376607,1742339626916,-1247.27,0.00043561,120]
[356376608,1742339626926,-571.9,0.00043561,120]
[356376609,1742339626935,-1731.09,0.00043561,120]
[356376610,1742339626944,-500.0,0.00043561,120]
[356376611,1742339626953,-690.54,0.00043561,120]
[356376612,1742339626962,-1601.13,0.00043561,120]
[356376613,1742339626972,-647.8,0.00043561,120]
[356376614,1742339626981,-619.12,0.00043561,120]
[356376615,1742339626990,-500.0,0.00043561,120]
[356376616,1742339626999,-657.42,0.00043561,120]
[356376617,1742339627008,-500.0,0.00043561,120]
[356376618,1742339627017,-1197.86,0.00043561,120]
[356376619,1742339627026,-557.94850397,0.00043561,120]
[356376620,1742339627035,-1514.57,0.00043561,120]
[356376621,1742339627044,-500.0,0.00043561,120]
[356376622,1742339627053,-500.0,0.00043561,120]
[356376623,1742339627062,-500.0,0.00043561,120]
[356376624,1742339627071,-500.0,0.00043561,120]
[356376625,1742339627079,-1264.5,0.00043561,120]
[356376626,1742339627088,-500.0,0.00043561,2]
[356376627,1742339627097,-500.0,0.00043561,120]
[356376628,1742339627107,-500.0,0.00043561,120]
[356376629,1742339627116,-677.1,0.00043561,120]
[356376630,1742339627125,-538.01,0.00043561,120]
[356376631,1742339627134,-1026.81,0.00043561,120]
[356376632,1742339627143,-500.0,0.00043561,120]
[356376633,1742339627152,-1290.9,0.00043561,120]
[356376634,1742339627161,-1035.82328804,0.000437,120]
[356376635,1742339627170,-524.31716385,0.00043728,9]
[356376636,1742339627179,-157.98121,0.0004379,42]
[356376637,1742339627188,-359.01171709,0.000438,120]
[356376638,1742339627197,-588.39,0.00043835,120]
[356376639,1742339627206,-500.0,0.00043835,120]
[356376640,1742339627215,-500.0,0.00043835,120]
[356376641,1742339627225,-695.53,0.00043835,120]
[356376642,1742339627234,-500.0,0.00043835,120]
[356376643,1742339627243,-500.0,0.00043835,120]
[356376644,1742339627253,-552.77,0.00043835,120]
[356376645,1742339627261,-520.69850813,0.00043835,120]
[356376646,1742339627271,-599.27,0.00043835,120]
[356376647,1742339627280,-500.0,0.00043835,120]
[356376648,1742339627288,-675.48,0.00043835,120]
[356376649,1742339627297,-500.0,0.00043835,120]
[356376650,1742339627306,-2951.2,0.00043835,120]
[356376651,1742339627315,-3587.64,0.00043835,120]
[356376652,1742339627324,-380.1404194,0.00043835,120]
[356376653,1742339627333,-731.85,0.00043835,120]
[356376654,1742339627342,-500.0,0.00043835,120]
[356376655,1742339627351,-1000.25,0.00043835,120]
[356376656,1742339627360,-500.0,0.00043835,120]
[356376657,1742339627369,-500.0,0.00043835,120]
[356376658,1742339627378,-500.0,0.00043835,120]
[356376659,1742339627387,-500.0,0.00043835,120]
[356376660,1742339627395,-500.0,0.00043835,120]
[356376661,1742339627405,-4954.91,0.00043835,120]
[356376662,1742339627414,-515.86,0.00043835,120]
[356376663,1742339627423,-1142.14,0.00043835,120]
[356376664,1742339627431,-1372.58,0.00043835,120]
[356376665,1742339627440,-500.0,0.00043835,120]
[356376666,1742339627450,-2157.42,0.00043835,120]
[356376667,1742339627459,-500.0,0.00043835,120]
[356376668,1742339627468,-1414.54,0.00043835,120]
[356376669,1742339627477,-1247.27,0.00043835,120]
[356376670,1742339627486,-571.9,0.00043835,120]
[356376671,1742339627495,-1731.09,0.00043835,120]
[356376672,1742339627505,-500.0,0.00043835,120]
[356376673,1742339627514,-690.54,0.00043835,120]
[356376674,1742339627523,-1601.13,0.00043835,120]
[356376675,1742339627532,-647.8,0.00043835,120]
[356376676,1742339627541,-619.12,0.00043835,120]
[356376677,1742339627550,-500.0,0.00043835,120]
[356376678,1742339627559,-657.42,0.00043835,120]
[356376679,1742339627568,-500.0,0.00043835,120]
[356376680,1742339627578,-1197.86,0.00043835,120]
[356376681,1742339627587,-1514.57,0.00043835,120]
[356376682,1742339627596,-500.0,0.00043835,120]
[356376683,1742339627607,-500.0,0.00043835,120]
[356376684,1742339627617,-500.0,0.00043835,120]
[356376685,1742339627626,-500.0,0.00043835,120]
[356376686,1742339627636,-1264.5,0.00043835,120]
[356376687,1742339627645,-500.0,0.00043835,2]
[356376688,1742339627654,-500.0,0.00043835,120]
[356376689,1742339627663,-500.0,0.00043835,120]
[356376690,1742339627672,-677.1,0.00043835,120]
[356376691,1742339627683,-538.01,0.00043835,120]
[356376692,1742339627692,-1026.81,0.00043835,120]
[356376693,1742339627701,-500.0,0.00043835,120]
[356376694,1742339627710,-1290.9,0.00043835,120]
[356376695,1742339627720,-1000.0,0.00043835,120]
[356376696,1742339627731,-1000.0,0.00043835,120]
[356376697,1742339627741,-1000.0,0.00043835,120]
[356376698,1742339627753,-1000.0,0.00043835,120]
[356376699,1742339627762,-1000.0,0.00043835,120]
[356376700,1742339627771,-1000.0,0.00043835,120]
[356376701,1742339627781,-1000.0,0.00043835,120]
[356376702,1742339627790,-1000.0,0.00043835,120]
[356376703,1742339627799,-1000.0,0.00043835,120]
[356376704,1742339627810,-1000.0,0.00043835,120]
[356376705,1742339627822,-1000.0,0.00043835,120]
[356376706,1742339627831,-500.0,0.00043836,120]
[356376707,1742339627843,-500.0,0.00043836,120]
[356376708,1742339627852,-150.0,0.00043868,120]
[356376709,1742339627862,-999.999998,0.00043888,120]
[356376710,1742339627872,-857.44,0.00043958,2]
[356376711,1742339627881,-50000.0,0.00044,44]
[356376712,1742339627891,-21466.34976055,0.00044,120]
[356376713,1742339627902,-50000.0,0.00044,26]
[356376714,1742339627911,-1000.0,0.00044,120]
[356376715,1742339627921,-1064.22840062,0.00044,30]
[356376716,1742339627930,-200.0,0.00044,120]
[356376717,1742339627939,-25000.0,0.00044,120]
[356376718,1742339627949,-850.0,0.00044,120]
[356376719,1742339627958,-570.76440151,0.00044,30]
[356376720,1742339627967,-154.21488271,0.00044,30]
[356376721,1742339627977,-3690.19748601,0.00044,30]
[356376722,1742339627986,-473.64251936,0.00044,60]
[356376723,1742339627996,-502.3156163,0.00044,120]
[356376724,1742339628006,-367.659982,0.00044,57]
[356376725,1742339628016,-588.39,0.00044109,120]
[356376726,1742339628025,-508.73851876,0.00044109,120]
[356376727,1742339628034,-500.0,0.00044109,120]
[356376728,1742339628043,-695.53,0.00044109,120]
[356376729,1742339628052,-500.0,0.00044109,120]
[356376730,1742339628061,-550.28,0.00044109,120]
[356376731,1742339628070,-599.27,0.00044109,120]
[356376732,1742339628080,-500.0,0.00044109,120]
[356376733,1742339628090,-675.48,0.00044109,120]
[356376734,1742339628099,-500.0,0.00044109,120]
[356376735,1742339628108,-2951.2,0.00044109,120]
[356376736,1742339628118,-3587.64,0.00044109,120]
[356376737,1742339628127,-731.85,0.00044109,120]
[356376738,1742339628137,-500.0,0.00044109,120]
[356376739,1742339628146,-1000.25,0.00044109,120]
[356376740,1742339628155,-500.0,0.00044109,120]
[356376741,1742339628163,-500.0,0.00044109,120]
[356376742,1742339628172,-500.0,0.00044109,120]
[356376743,1742339628181,-500.0,0.00044109,120]
[356376744,1742339628190,-510.09134857,0.00044109,120]
[356376745,1742339628199,-4954.91,0.00044109,120]
[356376746,1742339628208,-515.86,0.00044109,120]
[356376747,1742339628218,-1142.14,0.00044109,120]
[356376748,1742339628227,-1372.58,0.00044109,120]
[356376749,1742339628236,-500.0,0.00044109,120]
[356376750,1742339628245,-2157.42,0.00044109,120]
[356376751,1742339628256,-500.0,0.00044109,120]
[356376752,1742339628265,-1414.54,0.00044109,120]
[356376753,1742339628275,-1247.27,0.00044109,120]
[356376754,1742339628284,-571.9,0.00044109,120]
[356376755,1742339628293,-1731.09,0.00044109,120]
[356376756,1742339628303,-500.0,0.00044109,120]
[356376757,1742339628312,-690.54,0.00044109,120]
[356376758,1742339628321,-1601.13,0.00044109,120]
[356376759,1742339628330,-647.8,0.00044109,120]
[356376760,1742339628340,-619.12,0.00044109,120]
[356376761,1742339628350,-500.0,0.00044109,120]
[356376762,1742339628360,-657.42,0.00044109,120]
[356376763,1742339628371,-500.0,0.00044109,120]
[356376764,1742339628381,-1197.86,0.00044109,120]
[356376765,1742339628391,-1514.57,0.00044109,120]
[356376766,1742339628401,-500.0,0.00044109,120]
[356376767,1742339628411,-500.0,0.00044109,120]
[356376768,1742339628421,-500.0,0.00044109,120]
[356376769,1742339628430,-500.0,0.00044109,120]
[356376770,1742339628440,-1264.5,0.00044109,120]
[356376771,1742339628449,-500.0,0.00044109,2]
[356376772,1742339628459,-500.0,0.00044109,120]
[356376773,1742339628468,-500.0,0.00044109,120]
[356376774,1742339628478,-677.1,0.00044109,120]
[356376775,1742339628487,-538.01,0.00044109,120]
[356376776,1742339628497,-1026.81,0.00044109,120]
[356376777,1742339628506,-500.0,0.00044109,120]
[356376778,1742339628516,-1290.9,0.00044109,120]
[356376779,1742339628526,-1827.09,0.00044136,120]
[356376780,1742339628536,-1827.09,0.00044136,120]
[356376781,1742339628546,-1827.09,0.00044136,120]
[356376782,1742339628556,-1827.09,0.00044136,120]
[356376783,1742339628565,-1827.09,0.00044136,120]
[356376784,1742339628575,-1827.09,0.00044136,120]
[356376785,1742339628584,-1827.09,0.00044136,120]
[356376786,1742339628594,-1827.09,0.00044136,120]
[356376787,1742339628604,-1827.09,0.00044136,120]
[356376788,1742339628614,-1827.09,0.00044136,120]
[356376789,1742339628624,-1827.09,0.00044136,120]
[356376790,1742339628633,-1827.09,0.00044136,120]
[356376791,1742339628643,-1827.09,0.00044136,120]
[356376792,1742339628653,-1827.09,0.00044136,120]
[356376793,1742339628662,-1827.09,0.00044136,120]
[356376794,1742339628672,-1827.09,0.00044136,120]
[356376795,1742339628682,-1827.09,0.00044136,120]
[356376796,1742339628691,-1827.09,0.00044136,120]
[356376797,1742339628701,-1827.09,0.00044136,120]
[356376798,1742339628711,-1827.09,0.00044136,120]
[356376799,1742339628720,-1827.09,0.00044136,120]
[356376800,1742339628730,-1827.09,0.00044136,120]
[356376801,1742339628740,-1827.09,0.00044136,120]
[356376802,1742339628749,-1827.14636505,0.00044136,120]
[356376803,1742339628759,-713.22,0.00044239,2]
[356376804,1742339628769,-609.99,0.00044239,2]
[356376805,1742339628779,-588.39,0.00044383,120]
[356376806,1742339628789,-500.0,0.00044383,120]
[356376807,1742339628799,-695.53,0.00044383,120]
[356376808,1742339628808,-500.0,0.00044383,120]
[356376809,1742339628819,-599.27,0.00044383,120]
[356376810,1742339628830,-500.0,0.00044383,120]
[356376811,1742339628840,-675.48,0.00044383,120]
[356376812,1742339628850,-578.39588287,0.00044383,120]
[356376813,1742339628859,-2951.2,0.00044383,120]
[356376814,1742339628871,-3587.64,0.00044383,120]
[356376815,1742339628881,-731.85,0.00044383,120]
[356376816,1742339628891,-500.0,0.00044383,120]
[356376817,1742339628900,-1000.25,0.00044383,120]
[356376818,1742339628908,-440.36507556,0.00044383,120]
[356376819,1742339628915,-500.0,0.00044383,120]
[356376820,1742339628922,-500.0,0.00044383,120]
[356376821,1742339628931,-279.48704641,0.00044383,120]
[356376822,1742339628940,-4954.91,0.00044383,120]
[356376823,1742339628950,-515.86,0.00044383,120]
[356376824,1742339628960,-1142.14,0.00044383,120]
[356376825,1742339628970,-1372.58,0.00044383,120]
[356376826,1742339628980,-500.0,0.00044383,120]
[356376827,1742339628990,-2157.42,0.00044383,120]
[356376828,1742339629002,-500.0,0.00044383,120]
[356376829,1742339629012,-1414.54,0.00044383,120]
[356376830,1742339629023,-1247.27,0.00044383,120]
[356376831,1742339629032,-571.9,0.00044383,120]
[356376832,1742339629042,-1731.09,0.00044383,120]
[356376833,1742339629052,-500.0,0.00044383,120]
[356376834,1742339629061,-690.54,0.00044383,120]
[356376835,1742339629071,-1601.13,0.00044383,120]
[356376836,1742339629081,-647.8,0.00044383,120]
[356376837,1742339629090,-619.12,0.00044383,120]
[356376838,1742339629099,-500.0,0.00044383,120]
[356376839,1742339629109,-657.42,0.00044383,120]
[356376840,1742339629118,-500.0,0.00044383,120]
[356376841,1742339629128,-1197.86,0.00044383,120]
[356376842,1742339629138,-1514.57,0.00044383,120]
[356376843,1742339629148,-236.69,0.00044383,120]
[356376844,1742339629157,-500.0,0.00044383,120]
[356376845,1742339629167,-500.0,0.00044383,120]
[356376846,1742339629177,-1264.5,0.00044383,120]
[356376847,1742339629187,-500.0,0.00044383,2]
[356376848,1742339629197,-500.0,0.00044383,120]
[356376849,1742339629206,-500.0,0.00044383,120]
[356376850,1742339629216,-677.1,0.00044383,120]
[356376851,1742339629226,-538.01,0.00044383,120]
[356376852,1742339629236,-1026.81,0.00044383,120]
[356376853,1742339629246,-500.0,0.00044383,120]
[356376854,1742339629256,-1290.9,0.00044383,120]
[356376855,1742339629265,-153.34138544,0.000444,120]
[356376856,1742339629275,-10000.0,0.000444,120]
[356376857,1742339629284,-1579.51018549,0.000444,2]
[356376858,1742339629293,-50000.0,0.0004445,26]
[356376859,1742339629303,-25000.000001,0.000445,120]
[356376860,1742339629313,-246.98458201,0.000445,120]
[356376861,1742339629323,-590.44194563,0.000445,120]
[356376862,1742339629333,-524.31716385,0.00044521,10]
[356376863,1742339629342,-104430.3388199,0.00044553,120]
[356376864,1742339629352,-198.0,0.000446,30]
[356376865,1742339629363,-50488.29533888,0.0004462,2]
[356376866,1742339629373,-588.39,0.00044657,120]
[356376867,1742339629383,-500.0,0.00044657,120]
[356376868,1742339629393,-695.53,0.00044657,120]
[356376869,1742339629402,-500.0,0.00044657,120]
[356376870,1742339629412,-599.27,0.00044657,120]
[356376871,1742339629422,-500.0,0.00044657,120]
[356376872,1742339629432,-675.48,0.00044657,120]
[356376873,1742339629442,-2951.2,0.00044657,120]
[356376874,1742339629453,-3587.64,0.00044657,120]
[356376875,1742339629463,-731.85,0.00044657,120]
[356376876,1742339629472,-500.0,0.00044657,120]
[356376877,1742339629482,-1000.25,0.00044657,120]
[356376878,1742339629492,-500.0,0.00044657,120]
[356376879,1742339629501,-500.0,0.00044657,120]
[356376880,1742339629511,-4954.91,0.00044657,120]
[356376881,1742339629520,-515.86,0.00044657,120]
[356376882,1742339629530,-1142.14,0.00044657,120]
[356376883,1742339629540,-1372.58,0.00044657,120]
[356376884,1742339629550,-500.0,0.00044657,120]
[356376885,1742339629559,-2157.42,0.00044657,120]
[356376886,1742339629569,-500.0,0.00044657,120]
[356376887,1742339629578,-1414.54,0.00044657,120]
[356376888,1742339629589,-1247.27,0.00044657,120]
[356376889,1742339629598,-571.9,0.00044657,120]
[356376890,1742339629608,-1731.09,0.00044657,120]
[356376891,1742339629618,-500.0,0.00044657,120]
[356376892,1742339629627,-690.54,0.00044657,120]
[356376893,1742339629637,-1601.13,0.00044657,120]
[356376894,1742339629647,-647.8,0.00044657,120]
[356376895,1742339629657,-619.12,0.00044657,120]
[356376896,1742339629667,-500.0,0.00044657,120]